{"text_format":"1","workbook":"xlsx","n_sheets":4,"sheets":["Info","Pomoc S-1","Pomoc S-2","Pomoc S-3"],"not_rendered":{"charts":0,"images":0,"macros":1,"external_links":0,"defined_names":1,"comments":0,"pivot_tables":0},"unopened":[],"bounds":{"document_bytes":16777216,"sheet_cells":100000,"rows_first":2000,"rows_last":500,"rows_between":2000,"halvings":0,"cell_chars":16384,"cell_head_chars":4096},"cells_cut":0,"cells_raw":0,"read":"whole","date_system":"1900"}

{"sheet":"Info","index":0,"n_rows":25,"n_cols":10,"rows_kept":25,"cut":false,"hidden":false,"merged":[[18,1,19,1],[1,1,1,3],[4,5,4,6],[7,7,7,8],[6,7,6,8],[18,5,18,9],[18,3,19,3],[18,2,19,2]]}
[]
[null,"Narządzie pomocnicze\nKalkulator do wyliczania kwoty Pomocy bazowej oraz kwoty Pomocy zwiększonej"]
[]
[null,null,"Tabela 1"]
[null,"Lp.","Dane wejściowe","Wartość [zł]",null,"Panel sterowania"]
[null,"1.","Koszty kwalifikowane (KK)"]
[null,"2.","EBITDA za 2021 r."]
[null,"3.","EBITDA za 2022 r."]
[null,"4.","Inna pomoc publiczna (kumulacja) na te same koszty"]
[]
[]
[null,null,"Tabela 2"]
[null,"Lp.","Pomoc bazowa","Wartość [zł]"]
[null,"1.","Kwota Pomocy Bazowej (P max)",{"$f":"ROUND(50%*D6,2)","v":0}]
[null,"2.","Kwota Pomocy zwiększonej \n(P max minus Inna pomoc publiczna)",{"$f":"D14-D9","v":0}]
[]
[]
[null,null,"Tabela 3"]
[null,"Lp.","Pomoc zwiększona \nScenariusz obliczeniowy","Pomoc zwiększona\nWybór scenariusza","Pomoc bazowa\n(informacyjnie)","Pomoc zwiększona\n(oblicze nia)"]
[null,null,null,null,"Kwota Pomocy bazowej \n(P max minus Inna pomoc publiczna)","80% x KK minus pomoc publiczna\n(informacyjnie)","Warunek 1\n(odpowiednio dla każdego scenariusza)","Warunek 2\n(odpowiednio dla każdego scenariusza)","Kwota Pomocy zwiększonej\n(P max)","Kwota Pomocy zwiększonej \n(P max minus Inna pomoc publiczna)"]
[null,1,2,3,4,5,6,7,8,9]
[null,"1.","Scenariusz nr 1 - Pomoc zwiększona potencjalnie należna\nWeryfikacja w zakładce \"Pomoc S-1\"",{"$f":"IF(AND(D7>0,D8>0),\"TAK\",\"NIE\")","v":"NIE"},{"$f":"IF(D22=\"TAK\",ROUND((50%*$D$6)-D9,2),\"\")","v":""},{"$f":"IF(D22=\"TAK\",(80%*$D$6)-D9,\"\")","v":""},{"$f":"IF(D22=\"TAK\",'Pomoc S-1'!E22,\"\")","v":""},{"$f":"IF(D22=\"TAK\",'Pomoc S-1'!E26,\"\")","v":""},{"$f":"IF(G22=\"NIE\",\"Pomoc zwiększona nienależna\",IF(D22=\"TAK\",('Pomoc S-1'!E17),\"\"))","v":""},{"$f":"IF(G22=\"NIE\",\"Pomoc zwiększona nienależna\",IF(D22=\"TAK\",I22-$D$9,\"\"))","v":""}]
[null,"2.","Scenariusz nr 2 - Pomoc zwiększona potencjalnie należna\nWeryfikacja w zakładce \"Pomoc S-2\"",{"$f":"IF(AND(D7>0,D8<0),\"TAK\",\"NIE\")","v":"NIE"},{"$f":"IF(D23=\"TAK\",ROUND((50%*$D$6)-D9,2),\"\")","v":""},{"$f":"IF(D23=\"TAK\",(80%*$D$6)-D9,\"\")","v":""},{"$f":"IF(D23=\"TAK\",'Pomoc S-2'!E20,\"\")","v":""},{"$f":"IF(D23=\"TAK\",'Pomoc S-2'!E24,\"\")","v":""},{"$f":"IF(D23=\"TAK\",('Pomoc S-2'!E17),\"\")","v":""},{"$f":"IF(D23=\"TAK\",I23-$D$9,\"\")","v":""}]
[null,"3.","Scenariusz nr 3 - Pomoc zwiększona potencjalnie należna\nWeryfikacja w zakładce \"Pomoc S-3\"",{"$f":"IF(AND(D7<0,D8<0),\"TAK\",\"NIE\")","v":"NIE"},{"$f":"IF(D24=\"TAK\",ROUND((50%*$D$6)-D9,2),\"\")","v":""},{"$f":"IF(D24=\"TAK\",(80%*$D$6)-D9,\"\")","v":""},{"$f":"IF(D24=\"TAK\",'Pomoc S-3'!E20,\"\")","v":""},{"$f":"IF(D24=\"TAK\",'Pomoc S-3'!E22,\"\")","v":""},{"$f":"IF(D24=\"TAK\",('Pomoc S-3'!E17),\"\")","v":""},""]
[null,"4.","Scenariusz nr 4 - Pomoc zwiększona nienależna",{"$f":"IF(AND(D7<0,D8>0),\"TAK\",\"NIE\")","v":"NIE"},{"$f":"IF(D25=\"TAK\",ROUND((50%*$D$6)-D9,2),\"\")","v":""},{"$f":"IF(D25=\"TAK\",(80%*$D$6)-D9,\"\")","v":""},{"$f":"IF(D25=\"TAK\",\"Pomoc zwiększona nienależna\",\"\")","v":""},{"$f":"IF(D25=\"TAK\",\"Pomoc zwiększona nienależna\",\"\")","v":""},{"$f":"IF(D25=\"TAK\",\"Pomoc zwiększona nienależna\",\"\")","v":""},{"$f":"IF(D25=\"TAK\",\"Pomoc zwiększona nienależna\",\"\")","v":""}]

{"sheet":"Pomoc S-1","index":1,"n_rows":34,"n_cols":8,"rows_kept":34,"cut":false,"hidden":false,"merged":[[3,1,3,4],[10,1,10,4],[17,0,21,0],[1,1,1,4]]}
[]
[null,"Scenariusz nr 1\nWarunki brzegowe: \n - EBITDA 2021 > 0 (Wartość dodatnia)\n - EBITDA 2022 > 0 (Wartość dodatnia)"]
[]
[null,"Pomoc - wariant bazowy.\nMaksymalna kwota: 50% kosztów kwalifikowanych (KK), ale nie więcej niż 4 mln EUR, z uwzględnieniem:\n - regulacji dotyczącyh grup kapitałowych (GK)."]
[]
[null,null,"Tabela 1"]
[null,"Lp.","Pomoc bazowa","Jed.","Wartość",null,null,"Komentarz"]
[null,"1.","Koszty kwalifikowane (KK)","zł",{"$f":"IF(Info!D22=\"TAK\",Info!D6,\"\")","v":""},null,null,"Kwota KK wyliczona przez Wnioskdoawcę i zweryfikowana w GWD"]
[null,"2.","Pomoc bazowa - 50% KK (bez Innej pomocy publicznej)","zł",{"$f":"IF(Info!D22=\"TAK\",ROUND(50%*E8,2),\"\")","v":""},null,null,"Założenie programowe - kwota Pomocy bazowej stanowi 50% KK.\nWyliczenie nie uwzględnia Innej pomocy publicznej (kumulacja) na te same koszty"]
[]
[null,"Pomoc zwiększona - wariant rozszerzony (jeżeli dotyczy).\nMaksymalna kwota: 80% kosztów kwalifikowanych (KK), ale nie więcej niż 4 mln EUR, z uwzględnieniem:\n - regulacji dotyczącyh grup kapitałowych (GK), \n - warunków Programowych (Warunek nr 1 oraz Warunek nr 2)."]
[]
[null,null,"Tabela 2"]
[null,"Lp.","Pomoc zwiększona","Jed.","Wartość",null,null,"Komentarz"]
[null,"1.","Koszty kwalifikowane (KK)","zł",{"$f":"IF(Info!D22=\"TAK\",Info!D6,\"\")","v":""},null,null,"Kwota KK wyliczona przez Wnioskdoawcę i zweryfikowana w GWD"]
[null,"2.","Pomoc zwiększona - 80% KK (bez Innej pomocy publicznej)","zł",{"$f":"IF(Info!D22=\"TAK\",ROUND(80%*E15,2),\"\")","v":""},null,null,"Założenie programowe - kwota Pomocy zwiększonej stanowi 80% KK, z zastrzeżenim równoczesnego spełnienia Warunku 1 oraz Warunku 2"]
[null,"3.","Pomoc zwiększona (P max)","zł",null,null,null,"Przeliczenie robocze - P max\nKwota Pomocy zwiększonej - kwota obniżona dla spełnienia Warunku 2 (jeżeli dotyczy)"]
[null,"4.","EBITDA za 2021 r.","zł",{"$f":"IF(Info!D22=\"TAK\",Info!D7,\"\")","v":""},null,null,"Założenie programowe - wartość dodatnia (+)"]
[null,"5.","EBITDA za 2022 r.","zł",{"$f":"IF(Info!D22=\"TAK\",Info!D8,\"\")","v":""},null,null,"Założenie programowe - wartość dodatnia (+)"]
[null,"6.","Różnica (poz. 5 - poz. 4)","zł",{"$f":"IF(Info!D22=\"TAK\",E19-E18,\"\")","v":""},null,null,"Przeliczenie robocze"]
[null,"7.","Dynamika zmian EBITDA (poz. 5 / poz. 4)","%",{"$f":"IF(Info!D22=\"TAK\",(E19-E18)/E18,\"\")","v":""},null,null,"Przeliczenie robocze"]
[null,"8.","Warunek 1 ","TAK/NIE",{"$f":"IF(Info!D22=\"TAK\",IF(E21>-40%,\"NIE\",\"TAK\"),\"\")","v":""},null,null,"Warunek 1 - Czy zmiana EBITDA za lata 2022/2021 przekracza - 40%\n(TAK oznacza pozytywną weryfikację Warunku 1) "]
[null,"9.","EBITDA za 2021 r. skorygowana (poz. 6 x 70%)","zł",{"$f":"IF(Info!D22=\"TAK\",IF(E22=\"TAK\",E18*70%,\"Pomoc zwiększona nienależna\"),\"\")","v":""},null,null,"Założenie programowe"]
[null,"10.","EBITDA za 2022 r. + Pomoc zwiększona (poz. 3 + poz. 5)","zł",{"$f":"IF(Info!D22=\"TAK\",IF(E22=\"TAK\",E17+E19,\"Pomoc zwiększona nienależna\"),\"\")","v":""},null,null,"Założenie programowe"]
[null,"11.","Zmiana (poz. 10 - poz. 9)","zł",{"$f":"IF(Info!D22=\"TAK\",IF(E22=\"TAK\",E24-E23,(\"Pomoc zwiększona nienależna\")),\"\")","v":""},null,null,"Przeliczenie robocze - Pomoc zwiększona spełnia kryteria Programu przy wartości niższej niż 0,00 zł"]
[null,"12.","Warunek 2","TAK/NIE",{"$f":"IF(Info!D22=\"TAK\",IF(E22=\"TAK\",IF(E25>0,\"NIE\",\"TAK\"),\"Pomoc zwiększona nienależna\"),\"\")","v":""},null,null,"Warunek 2 - Czy wartość (EBITDA za 2022 r. + Pomoc zwiększona) jest nie wyższa niż wartość (EBITDA za 2021 r. x 70%) \n(TAK oznacza pozytywną weryfikację Warunku 2)"]
[null,"13.","Warunek 1 oraz Warunek 2 łącznie","TAK/NIE",{"$f":"IF(Info!D22=\"TAK\",IF(E22=\"TAK\",IF(AND(E22=\"TAK\",E26=\"TAK\"),\"TAK\",\"NIE\"),\"Pomoc zwiększona nienależna\"),\"\")","v":""},null,null,"Pomoc zwiększona spełnia kryteria Programu, jeżeli Warunek 1 oraz Warunek 2 są spełnione łącznie\n(TAK oznacza pozytywną weryfikację warunków)"]
[null,"14.","Maksymalna dopuszczalna Pomoc zwiększona","zł",{"$f":"IF(Info!D22=\"TAK\",IF(E22=\"TAK\",IF(AND(E22=\"TAK\",E26=\"TAK\"),E17,0),\"Pomoc zwiększona nienależna\"),\"\")","v":""},null,null,"Maksymalna dopuszczalna kwota Pomocy zwiększonej wyliczona na podstawie regulacji programowych"]
[null,"15.","Korekta Pomocy zwiększonej (jeżeli dotyczy)","zl",{"$f":"IF(Info!D22=\"TAK\",IF(E26=\"NIE\",E16-((E19+E16)-(70%*E18)),E16),\"\")","v":""},null,null,"Maksymalna kwota Pomocy zwiększonej do wpisania do Tabeli 2, poz. 3 dla spełnienia Warunku 2 (jeżeli dotyczy)"]
[]
[null,null,"Tabela 3"]
[null,"Lp.","Podsumowanie obliczeń","Jed.","Wartość",null,null,"Komentarz"]
[null,"1.","Kwota Pomocy bazowej \n(P max minus Inna pomoc publiczna)","zł",{"$f":"IF(Info!D22=\"TAK\",E9-Info!D9,\"\")","v":""},null,null,"Kwota Pomocy bazowej.\nWyliczenie uwzględnia Inną pomoc publiczną (kumulacja) na te same koszty"]
[null,"2.","Kwota Pomocy zwiększonej\n(P max minus Inna pomoc publiczna)","zł",{"$f":"IF(Info!D22=\"TAK\",E17-Info!D9,\"\")","v":""},null,null,"Kwota Pomocy zwiększonej.\nWyliczenie uwzględnia Inną pomoc publiczną (kumulacja) na te same koszty"]

{"sheet":"Pomoc S-2","index":2,"n_rows":32,"n_cols":8,"rows_kept":32,"cut":false,"hidden":false,"merged":[[3,1,3,4],[10,1,10,4],[17,0,19,0],[1,1,1,4]]}
[]
[null,"Scenariusz nr 2\nWarunki brzegowe: \n - EBITDA 2021 > 0 (Wartość dodatnia)\n - EBITDA 2022 < 0 (Wartość ujemna)"]
[]
[null,"Pomoc - wariant bazowy.\nMaksymalna kwota: 50% kosztów kwalifikowanych (KK), ale nie więcej niż 4 mln EUR, z uwzględnieniem:\n - regulacji dotyczącyh grup kapitałowych (GK)."]
[]
[null,null,"Tabela 1"]
[null,"Lp.","Pomoc bazowa","Jed.","Wartość",null,null,"Komentarz"]
[null,"1.","Koszty kwalifikowane (KK)","zł",{"$f":"IF(Info!D23=\"TAK\",Info!D6,\"\")","v":""},null,null,"Kwota KK wyliczona przez Wnioskdoawcę i zweryfikowana w GWD"]
[null,"2.","Pomoc bazowa - 50% KK (bez Innej pomocy publicznej)","zł",{"$f":"IF(Info!D23=\"TAK\",ROUND(50%*E8,2),\"\")","v":""},null,null,"Założenie programowe - kwota Pomocy bazowej stanowi 50% KK.\nWyliczenie nie uwzględnia Innej pomocy publicznej (kumulacja) na te same koszty"]
[]
[null,"Pomoc zwiększona - wariant rozszerzony (jeżeli dotyczy).\nMaksymalna kwota: 80% kosztów kwalifikowanych (KK), ale nie więcej niż 4 mln EUR, z uwzględnieniem:\n - regulacji dotyczącyh grup kapitałowych (GK), \n - warunków Programowych (Warunek nr 1 oraz Warunek nr 2)."]
[]
[null,null,"Tabela 2"]
[null,"Lp.","Pomoc zwiększona","Jed.","Wartość",null,null,"Komentarz"]
[null,"1.","Koszty kwalifikowane (KK)","zł",{"$f":"IF(Info!D23=\"TAK\",Info!D6,\"\")","v":""},null,null,"Kwota KK wyliczona przez Wnioskdoawcę i zweryfikowana w GWD"]
[null,"2.","Pomoc zwiększona - 80% KK (bez Innej pomocy publicznej)","zł",{"$f":"IF(Info!D23=\"TAK\",ROUND(80%*E15,2),\"\")","v":""},null,null,"Założenie programowe - kwota Pomocy zwiększonej stanowi 80% KK, z zastrzeżenim równoczesnego spełnienia Warunku 1 oraz Warunku 2"]
[null,"3.","Pomoc zwiększona (P max)","zł",null,null,null,"Przeliczenie robocze - P max\nKwota Pomocy zwiększonej - kwota obniżona dla spełnienia Warunku 2 (jeżeli dotyczy)"]
[null,"4.","EBITDA za 2021 r.","zł",{"$f":"IF(Info!D23=\"TAK\",Info!D7,\"\")","v":""},null,null,"Założenie programowe - wartość dodatnia (+)"]
[null,"5.","EBITDA za 2022 r.","zł",{"$f":"IF(Info!D23=\"TAK\",Info!D8,\"\")","v":""},null,null,"Założenie programowe - wartość ujemna (-)"]
[null,"6.","Warunek 1","TAK/NIE",{"$f":"IF(Info!D23=\"TAK\",IF(E19<0,\"TAK\",\"NIE\"),\"\")","v":""},null,null,"Warunek 1 - Czy EBITDA za 2022 r. ma wartość ujemną\n(TAK oznacza pozytywną weryfikację Warunku 1) "]
[null,"7.","EBITDA za 2021 skorygowana (poz. 4 x 70%)","zł",{"$f":"IF(Info!D23=\"TAK\",IF(E20=\"TAK\",E18*70%,\"Pomoc zwiększona nienależna\"),\"\")","v":""},null,null,"Przeliczenie robocze"]
[null,"8.","EBITDA za 2022 + Pomoc zwiększona (poz. 3 + poz. 5)","zł",{"$f":"IF(Info!D23=\"TAK\",IF(E20=\"TAK\",E17+E19,\"Pomoc zwiększona nienależna\"),\"\")","v":""},null,null,"Przeliczenie robocze"]
[null,"9.","Zmiana (poz. 8 - poz. 7)","zł",{"$f":"IF(Info!D23=\"TAK\",IF(E20=\"TAK\",E22-E21,(\"Pomoc zwiększona nienależna\")),\"\")","v":""},null,null,"Przeliczenie robocze - Pomoc zwiększona spełnia kryteria Programu przy wartości niższej niż 0,00 zł"]
[null,"10.","Warunek 2","TAK/NIE",{"$f":"IF(Info!D23=\"TAK\",IF(E20=\"TAK\",IF(E23>0,\"NIE\",\"TAK\"),\"Pomoc zwiększona nienależna\"),\"\")","v":""},null,null,"Warunek 2 - Czy wartość (EBITDA za 2022 r. + Pomoc zwiększona) jest nie wyższa niż wartość (EBITDA za 2021 r. x 70%)\n(TAK oznacza pozytywną weryfikację Warunku 2)"]
[null,"11.","Warunek 1 oraz Warunek 2 łącznie","TAK/NIE",{"$f":"IF(Info!D23=\"TAK\",IF(E20=\"TAK\",IF(AND(E20=\"TAK\",E24=\"TAK\"),\"TAK\",\"NIE\"),\"Pomoc zwiększona nienależna\"),\"\")","v":""},null,null,"Pomoc zwiększona spełnia kryteria Programu, jeżeli Warunek 1 oraz Warunek 2 są spełnione łącznie\n(TAK oznacza pozytywną weryfikację warunków)"]
[null,"12.","Maksymalna dopuszczalna Pomoc zwiększona","zł",{"$f":"IF(Info!D23=\"TAK\",IF(E20=\"TAK\",IF(AND(E20=\"TAK\",E24=\"TAK\"),E17,0),\"Pomoc zwiększona nienależna\"),\"\")","v":""},null,null,"Maksymalna dopuszczalna kwota Pomocy zwiększonej wyliczona na podstawie regulacji programowych"]
[null,"13.","Korekta Pomocy zwiększonej (jeżeli dotyczy)","zl",{"$f":"IF(Info!D23=\"TAK\",IF(E24=\"NIE\",E16-((E19+E16)-(70%*E18)),E16),\"\")","v":""},null,null,"Maksymalna kwota Pomocy zwiększonej do wpisania do Tabeli 2, poz. 3 dla spełnienia Warunku 2 (jeżeli dotyczy)"]
[]
[null,null,"Tabela 3"]
[null,"Lp.","Podsumowanie obliczeń","Jed.","Wartość",null,null,"Komentarz"]
[null,"1.","Kwota Pomocy bazowej \n(P max minus Inna pomoc publiczna)","zł",{"$f":"IF(Info!D23=\"TAK\",E9-Info!D9,\"\")","v":""},null,null,"Kwota Pomocy bazowej.\nWyliczenie uwzględnia Inną pomoc publiczną (kumulacja) na te same koszty"]
[null,"2.","Kwota Pomocy zwiększonej\n(P max minus Inna pomoc publiczna)","zł",{"$f":"IF(Info!D23=\"TAK\",E17-Info!D9,\"\")","v":""},null,null,"Kwota Pomocy zwiększonej.\nWyliczenie uwzględnia Inną pomoc publiczną (kumulacja) na te same koszty"]

{"sheet":"Pomoc S-3","index":3,"n_rows":30,"n_cols":8,"rows_kept":30,"cut":false,"hidden":false,"merged":[[3,1,3,4],[10,1,10,4],[17,0,19,0],[1,1,1,4]]}
[]
[null,"Scenariusz nr 3\nWarunki brzegowe: \n - EBITDA 2021 < 0 (Wartość ujemna)\n - EBITDA 2022 < 0 (Wartość ujemna)"]
[]
[null,"Pomoc - wariant bazowy.\nMaksymalna kwota: 50% kosztów kwalifikowanych (KK), ale nie więcej niż 4 mln EUR, z uwzględnieniem:\n - regulacji dotyczącyh grup kapitałowych (GK)."]
[]
[null,null,"Tabela 1"]
[null,"Lp.","Pomoc bazowa","Jed.","Wartość",null,null,"Komentarz"]
[null,"1.","Koszty kwalifikowane (KK)","zł",{"$f":"IF(Info!D24=\"TAK\",Info!D6,\"\")","v":""},null,null,"Kwota KK wyliczona przez Wnioskdoawcę i zweryfikowana w GWD"]
[null,"2.","Pomoc bazowa - 50% KK (bez Innej pomocy publicznej)","zł",{"$f":"IF(Info!D24=\"TAK\",ROUND(50%*E8,2),\"\")","v":""},null,null,"Założenie programowe - kwota Pomocy bazowej stanowi 50% KK.\nWyliczenie nie uwzględnia Innej pomocy publicznej (kumulacja) na te same koszty"]
[]
[null,"Pomoc zwiększona - wariant rozszerzony (jeżeli dotyczy).\nMaksymalna kwota: 80% kosztów kwalifikowanych (KK), ale nie więcej niż 4 mln EUR, z uwzględnieniem:\n - regulacji dotyczącyh grup kapitałowych (GK), \n - warunków Programowych (Warunek nr 1 oraz Warunek nr 2)."]
[]
[null,null,"Tabela 2"]
[null,"Lp.","Pomoc zwiększona","Jed.","Wartość",null,null,"Komentarz"]
[null,"1.","Koszty kwalifikowane (KK)","zł",{"$f":"IF(Info!D24=\"TAK\",Info!D6,\"\")","v":""},null,null,"Kwota KK wyliczona przez Wnioskdoawcę i zweryfikowana w GWD"]
[null,"2.","Pomoc zwiększona - 80% KK (bez Innej pomocy publicznej)","zł",{"$f":"IF(Info!D24=\"TAK\",ROUND(80%*E15,2),\"\")","v":""},null,null,"Założenie programowe - kwota Pomocy zwiększonej stanowi 80% KK, z zastrzeżenim równoczesnego spełnienia Warunku 1 oraz Warunku 2"]
[null,"3.","Pomoc zwiększona (P max)","zł",null,null,null,"Przeliczenie robocze - P max\nKwota Pomocy zwiększonej - kwota obniżona dla spełnienia Warunku 2 (jeżeli dotyczy)"]
[null,"4.","EBITDA za 2021 r.","zł",{"$f":"IF(Info!D24=\"TAK\",Info!D7,\"\")","v":""},null,null,"Założenie programowe - wartość ujemna (-)"]
[null,"5.","EBITDA za 2022 r.","zł",{"$f":"IF(Info!D24=\"TAK\",Info!D8,\"\")","v":""},null,null,"Założenie programowe - wartość ujemna (-)"]
[null,"6.","Warunek 1","TAK/NIE",{"$f":"IF(Info!D24=\"TAK\",IF(AND(E18<0,E19<0),\"TAK\",\"NIE\"),\"\")","v":""},null,null,"Warunek 1 - Czy EBITDA za 2022 r. ma wartość ujemną oraz czy EBITDA za 2021 r. ma wartość ujemną\n(TAK oznacza pozytywną weryfikację Warunku 1) "]
[null,"7.","EBITDA za 2022 r. + Pomoc zwiększona (poz. 3 + poz. 5)","zł",{"$f":"IF(Info!D24=\"TAK\",IF(E20=\"TAK\",E17+E19,\"Pomoc zwiększona nienależna\"),\"\")","v":""},null,null,"Przeliczenie robocze"]
[null,"8.","Warunek 2","TAK/NIE",{"$f":"IF(Info!D24=\"TAK\",IF(E20=\"TAK\",IF(E21<=0,\"TAK\",\"NIE\"),\"Pomoc zwiększona nienależna\"),\"\")","v":""},null,null,"Warunek 2 - Czy wartość (EBITDA za 2022 r. + Pomoc zwiększona) jest dodatnia\n(TAK oznacza pozytywną weryfikację Warunku 2)"]
[null,"9.","Warunek 1 oraz Warunek 2 łącznie","TAK/NIE",{"$f":"IF(Info!D24=\"TAK\",IF(E20=\"TAK\",IF(AND(E20=\"TAK\",E22=\"TAK\"),\"TAK\",\"NIE\"),\"Pomoc zwiększona nienależna\"),\"\")","v":""},null,null,"Pomoc zwiększona spełnia kryteria Programu, jeżeli Warunek 1 oraz Warunek 2 są spełnione łącznie\n(TAK oznacza pozytywną weryfikację warunków)"]
[null,"10.","Maksymalna dopuszczalna Pomoc zwiększona","zł",{"$f":"IF(Info!D24=\"TAK\",IF(E20=\"TAK\",IF(AND(E20=\"TAK\",E22=\"TAK\"),E17,0),\"Pomoc zwiększona nienależna\"),\"\")","v":""},null,null,"Maksymalna dopuszczalna kwota Pomocy zwiększonej wyliczona na podstawie regulacji programowych"]
[null,"11.","Korekta Pomocy zwiększonej (jeżeli dotyczy)","zl",{"$f":"IF(Info!D24=\"TAK\",IF(E22=\"NIE\",E16-E21,E16),\"\")","v":""},null,null,"Maksymalna kwota Pomocy zwiększonej do wpisania do Tabeli 2, poz. 3 dla spełnienia Warunku 2 (jeżeli dotyczy)"]
[]
[null,null,"Tabela 3"]
[null,"Lp.","Podsumowanie obliczeń","Jed.","Wartość",null,null,"Komentarz"]
[null,"1.","Kwota Pomocy bazowej \n(P max minus Inna pomoc publiczna)","zł",{"$f":"IF(Info!D24=\"TAK\",E9-Info!D9,\"\")","v":""},null,null,"Kwota Pomocy bazowej.\nWyliczenie uwzględnia Inną pomoc publiczną (kumulacja) na te same koszty"]
[null,"2.","Kwota Pomocy zwiększonej\n(P max minus Inna pomoc publiczna)","zł",{"$f":"IF(Info!D24=\"TAK\",E17-Info!D9,\"\")","v":""},null,null,"Kwota Pomocy zwiększonej.\nWyliczenie uwzględnia Inną pomoc publiczną (kumulacja) na te same koszty"]